fUST/lending_fUST_20250614
["ID","MTS","AMOUNT","RATE_DAILY","PERIOD"]
[365775484,1749906639263,-460.0,0.00021917,4]
[365775485,1749906639272,-460.0,0.00021917,4]
[365775486,1749906639281,-430.0,0.00021917,4]
[365775487,1749906639293,-430.05060219,0.00021917,4]
[365775488,1749906639302,-460.0,0.00021917,4]
[365775489,1749906639312,-460.0,0.00021917,4]
[365775490,1749906639322,-460.0,0.00021917,4]
[365775491,1749906639331,-460.0,0.00021917,4]
[365775492,1749906639341,-448.80017545,0.00021917,4]
[365775493,1749906639350,-460.0,0.00021917,4]
[365775494,1749906639359,-460.0,0.00021917,4]
[365775495,1749906639369,-460.0,0.00021917,4]
[365775496,1749906639379,-460.0,0.00021917,4]
[365775497,1749906639389,-500.0,0.00021917,4]
[365775498,1749906639398,-500.0,0.00021917,4]
[365775499,1749906639407,-500.0,0.00021917,4]
[365775500,1749906639417,-500.0,0.00021917,4]
[365775501,1749906639426,-500.0,0.00021917,4]
[365775502,1749906639436,-500.0,0.00021917,4]
[365775503,1749906639445,-500.0,0.00021917,4]
[365775504,1749906639454,-500.0,0.00021917,4]
[365775505,1749906639463,-500.0,0.00021917,4]
[365775506,1749906639473,-460.0,0.00021917,4]
[365775507,1749906639489,-500.0,0.00021917,4]
[365775508,1749906639500,-500.0,0.00021917,4]
[365775509,1749906639510,-460.0,0.00021917,4]
[365775510,1749906639519,-500.0,0.00021917,4]
[365775511,1749906639528,-435.16852193,0.00021917,4]
[365775512,1749906639538,-817.11,0.00021917,4]
[365775513,1749906639547,-458.29636116,0.00021917,4]
[365775514,1749906639557,-460.0,0.00021917,4]
[365775515,1749906639566,-460.0,0.00021917,4]
[365775516,1749906639576,-460.0,0.00021917,4]
[365775517,1749906639585,-450.0,0.00021917,4]
[365775518,1749906639594,-228.45092331,0.00021917,4]
[365775519,1749906639604,-500.0,0.00021917,4]
[365775520,1749906639613,-460.0,0.00021917,4]
[365775521,1749906639622,-460.0,0.00021917,4]
[365775522,1749906639632,-461.3744267,0.00021917,4]
[365775523,1749906639642,-458.34220387,0.00021917,4]
[365775524,1749906639651,-553.18,0.00021917,4]
[365775525,1749906639660,-500.0,0.00021935,4]
[365775526,1749906639670,-500.0,0.00021936,4]
[365775527,1749906639680,-5000.0,0.00021938,2]
[365775528,1749906639690,-322914.31785847,0.00021972,2]
[365775529,1749906639749,-232961.14386153,0.00021972,2]
[365775530,1749906639759,-500.0,0.00021973,2]
[365775531,1749906639769,-500.0,0.00021973,2]
[365775532,1749906639779,-500.0,0.00021973,2]
[365775533,1749906639788,-501.55391125,0.00021973,2]
[365775534,1749906639798,-504.2284594,0.00021973,2]
[365775535,1749906639807,-500.0,0.00021973,2]
[365775536,1749906639817,-500.0,0.00021973,2]
[365775537,1749906639827,-507.57878241,0.00021973,2]
[365775538,1749906639836,-617.78871606,0.00021973,2]
[365775539,1749906639845,-500.0,0.00021973,2]
[365775540,1749906639856,-500.0,0.00021973,2]
[365775541,1749906639869,-500.0,0.00021973,2]
[365775542,1749906639879,-500.0,0.00021973,2]
[365775543,1749906639888,-500.0,0.00021973,2]
[365775544,1749906639897,-503.87383377,0.00021973,2]
[365775545,1749906639907,-443.36030854,0.00021973,2]
[365775546,1749906639916,-500.0,0.00021973,2]
[365775547,1749906639925,-502.03367678,0.00021973,2]
[365775548,1749906639935,-500.0,0.00021973,2]
[365775549,1749906639944,-179.46167379,0.00021973,2]
[365775550,1749906639953,-500.0,0.00021973,2]
[365775551,1749906639963,-500.0,0.00021973,2]
[365775552,1749906639973,-504.13260984,0.00021973,2]
[365775553,1749906639983,-502.6359938,0.00021973,2]
[365775554,1749906639992,-500.0,0.00021973,2]
[365775555,1749906640002,-216.24041795,0.00021973,2]
[365775556,1749906640011,-189.06396909,0.00021973,2]
[365775557,1749906640020,-500.0,0.00021973,2]
[365775558,1749906640030,-505.25875347,0.00021973,2]
[365775559,1749906640039,-500.0,0.00021973,2]
[365775560,1749906640049,-500.0,0.00021999,4]
[365775561,1749906640059,-500.0,0.00021999,4]
[365775562,1749906640069,-500.0,0.00021999,4]
[365775563,1749906640079,-500.0,0.00021999,4]
[365775564,1749906640088,-618.19020497,0.00021999,4]
[365775565,1749906640098,-287.24603815,0.00022,2]
[365775566,1749906640107,-1030.74,0.00022,7]
[365775567,1749906640117,-120445.83,0.00022,7]
[365775568,1749906640127,-3653.04,0.00022,7]
[365775569,1749906640136,-845.10789306,0.00022,7]
[365775570,1749906640146,-178.0,0.00022,2]
[365775571,1749906640156,-1580.99945931,0.00022003,6]
[365775572,1749906640165,-835.41710878,0.00022036,2]
[365775573,1749906640175,-229.82479369,0.00022036,2]
[365775574,1749906640184,-213.28201367,0.00022036,2]
[365775575,1749906640194,-160.0,0.00022036,2]
[365775576,1749906640203,-160.0,0.00022036,2]
[365775577,1749906640217,-845.10789306,0.00022036,2]
[365775578,1749906640227,-160.0,0.00022036,2]
[365775579,1749906640237,-424.40141186,0.00022036,2]
[365775580,1749906640246,-160.0,0.00022038,2]
[365775581,1749906640258,-160.0,0.00022038,2]
[365775583,1749906640268,-500.0,0.0002204,4]
[365775585,1749906640278,-160.0,0.00022041,2]
[365775587,1749906640287,-160.0,0.00022041,2]
[365775589,1749906640301,-160.0,0.00022041,2]
[365775591,1749906640310,-160.0,0.00022041,2]
[365775593,1749906640321,-12533.30537164,0.00022041,2]
[365775595,1749906640331,-187.88981267,0.00022054,4]
[365775597,1749906640342,-500.0,0.00022054,4]
[365775598,1749906640352,-500.0,0.00022054,4]
[365775599,1749906640362,-500.0,0.00022054,4]
[365775600,1749906640371,-151.0,0.00022054,4]
[365775601,1749906640381,-151.0,0.00022054,4]
[365775602,1749906640391,-155.14312429,0.00022054,4]
[365775603,1749906640401,-166.11494016,0.00022054,4]
[365775604,1749906640411,-500.0,0.00022054,4]
[365775605,1749906640421,-500.0,0.00022054,4]
[365775607,1749906640431,-194.9397701,0.00022054,4]
[365775609,1749906640440,-151.0,0.00022054,4]
[365775611,1749906640450,-500.0,0.00022081,4]
[365775613,1749906640460,-500.0,0.00022081,4]
[365775615,1749906640470,-500.0,0.00022081,4]
[365775617,1749906640479,-151.0,0.00022081,4]
[365775619,1749906640489,-500.0,0.00022081,4]
[365775621,1749906640499,-508.18087012,0.00022081,4]
[365775623,1749906640509,-1580.99945931,0.00022107,6]
[365775626,1749906640518,-500.0,0.00022109,4]
[365775627,1749906640528,-151.0,0.00022109,4]
[365775628,1749906640538,-516.27455382,0.00022109,4]
[365775629,1749906640548,-500.0,0.00022136,4]
[365775630,1749906640558,-4909.09703366,0.0002216,2]
[365775631,1749906640567,-343.43614523,0.00022164,4]
[365775632,1749906640578,-413.30946806,0.00022164,4]
[365775633,1749906640587,-500.0,0.0002219,4]
[365775634,1749906640598,-360.24165597,0.00022191,4]
[365775635,1749906640607,-151.0,0.00022191,7]
[365775636,1749906640617,-151.0,0.00022191,7]
[365775637,1749906640626,-151.0,0.00022191,7]
[365775638,1749906640636,-151.0,0.00022191,7]
[365775639,1749906640645,-193.477173,0.00022191,7]
[365775640,1749906640654,-193.477173,0.00022191,7]
[365775641,1749906640663,-193.477173,0.00022191,7]
[365775642,1749906640674,-193.477173,0.00022191,7]
[365775643,1749906640683,-342.53114321,0.00022191,4]
[365775644,1749906640693,-460.0,0.00022191,4]
[365775645,1749906640703,-460.0,0.00022191,4]
[365775646,1749906640713,-460.0,0.00022191,4]
[365775647,1749906640723,-460.0,0.00022191,4]
[365775648,1749906640732,-460.0,0.00022191,4]
[365775649,1749906640742,-460.0,0.00022191,4]
[365775650,1749906640752,-460.0,0.00022191,4]
[365775651,1749906640761,-460.0,0.00022191,4]
[365775652,1749906640770,-416.18790948,0.00022191,4]
[365775653,1749906640780,-260.0,0.00022191,4]
[365775654,1749906640790,-460.0,0.00022191,4]
[365775655,1749906640799,-459.84832364,0.00022191,4]
[365775656,1749906640809,-460.0,0.00022191,4]
[365775657,1749906640818,-460.0,0.00022191,4]
[365775658,1749906640828,-460.0,0.00022191,4]
[365775659,1749906640837,-460.0,0.00022191,4]
[365775660,1749906640847,-267.8,0.00022191,4]
[365775661,1749906640856,-844.95,0.00022191,4]
[365775662,1749906640867,-177.0,0.00022191,4]
[365775663,1749906640878,-440.0,0.00022191,4]
[365775664,1749906640887,-460.0,0.00022191,4]
[365775665,1749906640897,-460.0,0.00022191,4]
[365775666,1749906640906,-460.0,0.00022191,4]
[365775667,1749906640915,-501.34712128,0.00022191,4]
[365775668,1749906640925,-340.0,0.00022191,4]
[365775669,1749906640934,-460.0,0.00022191,4]
[365775670,1749906640944,-460.0,0.00022191,4]
[365775671,1749906640954,-460.0,0.00022191,4]
[365775672,1749906640962,-460.0,0.00022191,4]
[365775673,1749906640972,-368.13971711,0.00022191,4]
[365775674,1749906640981,-460.0,0.00022191,4]
[365775676,1749906640990,-460.0,0.00022191,4]
[365775677,1749906640999,-460.0,0.00022191,4]
[365775678,1749906641009,-231.462736,0.00022191,7]
[365775679,1749906641018,-231.462736,0.00022191,7]
[365775680,1749906641027,-460.0,0.00022191,4]
[365775681,1749906641037,-309.26940035,0.00022191,4]
[365775682,1749906641047,-231.462736,0.00022191,7]
[365775683,1749906641056,-231.462736,0.00022191,7]
[365775684,1749906641066,-410.0,0.00022191,4]
[365775685,1749906641076,-460.0,0.00022191,4]
[365775686,1749906641086,-460.0,0.00022191,4]
[365775687,1749906641095,-420.0,0.00022191,4]
[365775688,1749906641189,-250.0,0.00022191,4]
[365775689,1749906641199,-460.0,0.00022191,4]
[365775690,1749906641209,-460.0,0.00022191,4]
[365775691,1749906641221,-460.0,0.00022191,4]
[365775692,1749906641231,-460.0,0.00022191,4]
[365775693,1749906641241,-460.0,0.00022191,4]
[365775694,1749906641251,-549.68649308,0.00022191,4]
[365775695,1749906641260,-240.0,0.00022191,4]
[365775696,1749906641270,-410.0,0.00022191,4]
[365775697,1749906641279,-460.0,0.00022191,4]
[365775698,1749906641290,-360.0,0.00022191,4]
[365775699,1749906641300,-460.0,0.00022191,4]
[365775700,1749906641310,-410.0,0.00022191,4]
[365775701,1749906641319,-380.0,0.00022191,4]
[365775702,1749906641329,-460.0,0.00022191,4]
[365775703,1749906641338,-460.0,0.00022191,4]
[365775704,1749906641347,-460.0,0.00022191,4]
[365775705,1749906641357,-460.0,0.00022191,4]
[365775706,1749906641366,-245.68446237,0.00022191,4]
[365775707,1749906641375,-395.44151572,0.00022191,4]
[365775708,1749906641385,-460.0,0.00022191,4]
[365775709,1749906641394,-460.0,0.00022191,4]
[365775710,1749906641403,-460.0,0.00022191,4]
[365775711,1749906641412,-460.0,0.00022191,4]
[365775712,1749906641422,-460.0,0.00022191,4]
[365775713,1749906641432,-460.0,0.00022191,4]
[365775714,1749906641441,-460.0,0.00022191,4]
[365775715,1749906641450,-422.05866841,0.00022191,4]
[365775716,1749906641460,-420.0,0.00022191,4]
[365775717,1749906641469,-420.0,0.00022191,4]
[365775718,1749906641478,-420.0,0.00022191,4]
[365775719,1749906641488,-1794.95,0.00022191,4]
[365775720,1749906641497,-460.0,0.00022191,4]
[365775721,1749906641507,-420.0,0.00022191,4]
[365775722,1749906641516,-460.0,0.00022191,4]
[365775723,1749906641525,-460.0,0.00022191,4]
[365775724,1749906641535,-460.0,0.00022191,4]
[365775725,1749906641545,-460.0,0.00022191,4]
[365775726,1749906641554,-420.0,0.00022191,4]
[365775727,1749906641563,-230.0,0.00022191,4]
[365775728,1749906641572,-460.0,0.00022191,4]
[365775729,1749906641582,-460.0,0.00022191,4]
[365775730,1749906641592,-460.0,0.00022191,4]
[365775731,1749906641602,-460.0,0.00022191,4]
[365775732,1749906641612,-460.0,0.00022191,4]
[365775733,1749906641622,-460.0,0.00022191,4]
[365775734,1749906641631,-420.0,0.00022191,4]
[365775736,1749906641641,-460.0,0.00022191,4]
[365775738,1749906641650,-460.0,0.00022191,4]
[365775740,1749906641659,-460.0,0.00022191,4]
[365775741,1749906641669,-460.0,0.00022191,4]
[365775743,1749906641678,-460.0,0.00022191,4]
[365775745,1749906641688,-563.16,0.00022191,4]
[365775747,1749906641697,-226.58,0.00022191,4]
[365775748,1749906641706,-460.0,0.00022191,4]
[365775749,1749906641716,-460.0,0.00022191,4]
[365775750,1749906641725,-460.0,0.00022191,4]
[365775751,1749906641735,-510.68514741,0.00022191,4]
[365775752,1749906641747,-460.0,0.00022191,4]
[365775753,1749906641756,-460.0,0.00022191,4]
[365775754,1749906641765,-245.29,0.00022191,4]
[365775755,1749906641775,-460.0,0.00022191,4]
[365775756,1749906641784,-460.0,0.00022191,4]
[365775757,1749906641794,-460.0,0.00022191,4]
[365775758,1749906641804,-460.0,0.00022191,4]
[365775759,1749906641813,-460.0,0.00022191,4]
[365775760,1749906641823,-311.85,0.00022191,4]
[365775761,1749906641832,-460.0,0.00022191,4]
[365775762,1749906641841,-207.014029,0.00022191,7]
[365775763,1749906641851,-460.82,0.00022191,4]
[365775764,1749906641860,-785.69,0.00022191,4]
[365775765,1749906641869,-460.0,0.00022191,4]
[365775766,1749906641878,-460.0,0.00022191,4]
[365775767,1749906641888,-460.0,0.00022191,4]
[365775768,1749906641897,-1752.21,0.00022191,4]
[365775769,1749906641907,-207.014029,0.00022191,7]
[365775770,1749906641915,-460.0,0.00022191,2]
[365775771,1749906641925,-460.0,0.00022191,4]
[365775772,1749906641934,-460.0,0.00022191,4]
[365775773,1749906641943,-460.0,0.00022191,4]
[365775774,1749906641952,-460.0,0.00022191,4]
[365775775,1749906641961,-460.0,0.00022191,4]
[365775776,1749906641970,-460.0,0.00022191,4]
[365775777,1749906641979,-1681.61,0.00022191,4]
[365775778,1749906641988,-460.0,0.00022191,4]
[365775779,1749906641997,-460.0,0.00022191,4]
[365775780,1749906642006,-460.0,0.00022191,4]
[365775781,1749906642014,-4179.07,0.00022191,4]
[365775782,1749906642024,-460.0,0.00022191,4]
[365775783,1749906642033,-460.0,0.00022191,4]
[365775784,1749906642041,-460.0,0.00022191,4]
[365775785,1749906642050,-460.0,0.00022191,4]
[365775786,1749906642059,-460.0,0.00022191,4]
[365775787,1749906642068,-460.0,0.00022191,4]
[365775788,1749906642077,-1735.71,0.00022191,4]
[365775789,1749906642086,-460.0,0.00022191,4]
[365775790,1749906642095,-460.0,0.00022191,4]
[365775791,1749906642104,-390.0,0.00022191,4]
[365775792,1749906642114,-663.38,0.00022191,4]
[365775793,1749906642123,-460.0,0.00022191,4]
[365775794,1749906642132,-1524.42,0.00022191,4]
[365775795,1749906642141,-460.0,0.00022191,4]
[365775796,1749906642150,-460.0,0.00022191,4]
[365775797,1749906642159,-460.0,0.00022191,4]
[365775798,1749906642168,-319.08884918,0.00022191,4]
[365775799,1749906642177,-460.0,0.00022191,4]
[365775800,1749906642186,-460.0,0.00022191,4]
[365775801,1749906642194,-460.0,0.00022191,4]
[365775802,1749906642203,-460.0,0.00022191,4]
[365775803,1749906642215,-460.0,0.00022191,4]
[365775804,1749906642225,-460.0,0.00022191,4]
[365775805,1749906642234,-410.0,0.00022191,4]
[365775806,1749906642243,-400.0,0.00022191,4]
[365775807,1749906642254,-460.0,0.00022191,4]
[365775808,1749906642264,-460.0,0.00022191,4]
[365775809,1749906642274,-1397.27,0.00022191,4]
[365775810,1749906642284,-460.0,0.00022191,4]
[365775811,1749906642294,-312.22,0.00022191,4]
[365775812,1749906642303,-460.0,0.00022191,4]
[365775813,1749906642312,-478.44,0.00022191,4]
[365775814,1749906642323,-1932.48,0.00022191,4]
[365775815,1749906642332,-460.0,0.00022191,4]
[365775816,1749906642342,-460.0,0.00022191,4]
[365775817,1749906642351,-642.09,0.00022191,4]
[365775818,1749906642361,-460.0,0.00022191,4]
[365775819,1749906642370,-467.51563763,0.00022191,4]
[365775820,1749906642380,-460.0,0.00022191,4]
[365775821,1749906642389,-460.0,0.00022191,4]
[365775822,1749906642399,-460.0,0.00022191,4]
[365775823,1749906642408,-460.0,0.00022191,4]
[365775824,1749906642418,-817.11,0.00022191,4]
[365775825,1749906642427,-460.0,0.00022191,4]
[365775826,1749906642437,-500.0,0.00022191,4]
[365775827,1749906642446,-1580.99945931,0.0002221,6]
[365775828,1749906642456,-164.7498231,0.00022245,2]
[365775829,1749906642465,-1580.99945931,0.00022314,7]
[365775830,1749906642475,-1580.99945931,0.00022417,7]
[365775831,1749906642484,-151.0,0.00022464,7]
[365775832,1749906642494,-151.0,0.00022464,7]
[365775833,1749906642504,-158.586032,0.00022464,7]
[365775835,1749906642513,-385.26,0.00022464,3]
[365775836,1749906642522,-151.0,0.00022464,7]
[365775838,1749906642531,-151.0,0.00022464,7]
[365775841,1749906642541,-151.0,0.00022464,7]
[365775843,1749906642551,-151.0,0.00022464,7]
[365775844,1749906642560,-151.0,0.00022465,7]
[365775847,1749906642569,-151.0,0.00022465,7]
[365775848,1749906642579,-151.0,0.00022465,7]
[365775850,1749906642589,-151.0,0.00022465,7]
[365775853,1749906642599,-193.477173,0.00022465,7]
[365775854,1749906642608,-193.477173,0.00022465,7]
[365775857,1749906642617,-193.477173,0.00022465,7]
[365775859,1749906642627,-193.477173,0.00022465,7]
[365775861,1749906642636,-460.0,0.00022465,4]
[365775862,1749906642646,-844.95,0.00022465,4]
[365775864,1749906642655,-460.0,0.00022465,4]
[365775865,1749906642665,-460.0,0.00022465,4]
[365775866,1749906642674,-460.0,0.00022465,4]
[365775867,1749906642684,-230.0,0.00022465,4]
[365775868,1749906642694,-231.462736,0.00022465,7]
[365775869,1749906642703,-231.462736,0.00022465,7]
[365775870,1749906642712,-460.0,0.00022465,4]
[365775871,1749906642722,-231.462736,0.00022465,7]
[365775873,1749906642731,-231.462736,0.00022465,7]
[365775874,1749906642740,-500.0,0.00022465,2]
[365775875,1749906642750,-220.0,0.00022465,4]
[365775876,1749906642760,-283.10091304,0.00022465,4]
[365775877,1749906642769,-151.0,0.00022465,7]
[365775878,1749906642778,-460.0,0.00022465,4]
[365775879,1749906642787,-460.0,0.00022465,4]
[365775880,1749906642797,-460.0,0.00022465,4]
[365775881,1749906642806,-460.0,0.00022465,4]
[365775882,1749906642816,-460.0,0.00022465,4]
[365775883,1749906642826,-460.0,0.00022465,4]
[365775884,1749906642836,-460.0,0.00022465,4]
[365775885,1749906642846,-151.0,0.00022465,7]
[365775886,1749906642855,-222.282512,0.00022465,7]
[365775887,1749906642866,-1794.95,0.00022465,4]
[365775888,1749906642875,-292.32,0.00022465,4]
[365775889,1749906642884,-460.0,0.00022465,4]
[365775890,1749906642894,-460.0,0.00022465,4]
[365775891,1749906642903,-460.0,0.00022465,4]
[365775892,1749906642913,-460.0,0.00022465,4]
[365775893,1749906642922,-460.0,0.00022465,4]
[365775894,1749906642931,-460.0,0.00022465,4]
[365775895,1749906642941,-460.0,0.00022465,4]
[365775896,1749906643026,-460.0,0.00022465,4]
[365775897,1749906643036,-460.0,0.00022465,4]
[365775898,1749906643047,-785.69,0.00022465,4]
[365775899,1749906643057,-460.0,0.00022465,4]
[365775900,1749906643067,-1752.21,0.00022465,4]
[365775901,1749906643077,-460.0,0.00022465,2]
[365775904,1749906643087,-190.0,0.00022465,4]
[365775905,1749906643096,-460.0,0.00022465,4]
[365775906,1749906643105,-1681.61,0.00022465,4]
[365775907,1749906643115,-460.0,0.00022465,4]
[365775908,1749906643124,-460.0,0.00022465,4]
[365775909,1749906643133,-4179.07,0.00022465,4]
[365775910,1749906643143,-460.0,0.00022465,4]
[365775911,1749906643152,-1735.71,0.00022465,4]
[365775912,1749906643162,-460.0,0.00022465,4]
[365775913,1749906643171,-460.0,0.00022465,4]
[365775914,1749906643180,-663.38,0.00022465,4]
[365775915,1749906643190,-1524.42,0.00022465,4]
[365775916,1749906643199,-460.0,0.00022465,4]
[365775917,1749906643208,-460.0,0.00022465,4]
[365775918,1749906643224,-460.0,0.00022465,4]
[365775919,1749906643234,-544.42871805,0.00022465,4]
[365775920,1749906643243,-151.0,0.00022465,7]
[365775921,1749906643253,-460.0,0.00022465,4]
[365775922,1749906643263,-151.0,0.00022465,7]
[365775923,1749906643274,-460.0,0.00022465,4]
[365775924,1749906643285,-1397.27,0.00022465,4]
[365775925,1749906643297,-460.0,0.00022465,4]
[365775926,1749906643307,-460.0,0.00022465,4]
[365775927,1749906643317,-177.894737,0.00022465,7]
[365775929,1749906643326,-478.44,0.00022465,4]
[365775931,1749906643336,-177.894737,0.00022465,7]
[365775932,1749906643345,-1932.48,0.00022465,4]
[365775933,1749906643355,-460.0,0.00022465,4]
[365775934,1749906643364,-642.09,0.00022465,4]
[365775935,1749906643374,-460.0,0.00022465,4]
[365775936,1749906643385,-460.0,0.00022465,4]
[365775937,1749906643394,-460.0,0.00022465,4]
[365775938,1749906643403,-460.0,0.00022465,4]
[365775939,1749906643412,-817.11,0.00022465,4]
[365775940,1749906643422,-500.0,0.00022466,2]
[365775941,1749906643432,-500.0,0.00022466,2]
[365775942,1749906643442,-500.0,0.00022466,2]
[365775943,1749906643451,-500.0,0.00022466,2]
[365775944,1749906643460,-500.0,0.00022466,2]
[365775945,1749906643469,-650.0,0.00022466,2]
[365775946,1749906643479,-4909.09703366,0.00022502,2]
[365775948,1749906643488,-196.90797508,0.00022521,2]
[365775950,1749906643497,-1000.0,0.00022521,2]
[365775951,1749906643506,-1000.0,0.00022521,2]
[365775952,1749906643516,-1000.0,0.00022521,2]
[365775953,1749906643526,-1000.0,0.00022521,2]
[365775954,1749906643536,-1000.0,0.00022521,2]
[365775955,1749906643545,-1000.0,0.00022521,2]
[365775956,1749906643555,-1077.1181603,0.00022521,2]
[365775957,1749906643564,-503.4130077,0.00022521,2]
[365775958,1749906643574,-1000.0,0.00022521,2]
[365775959,1749906643583,-1000.0,0.00022521,2]
[365775960,1749906643592,-1000.0,0.00022521,2]
[365775961,1749906643602,-1580.99945931,0.00022521,7]
[365775963,1749906643611,-1800.2491764,0.00022558,2]
[365775964,1749906643620,-420.0,0.00022617,2]
[365775965,1749906643630,-207.4,0.00022618,2]
[365775966,1749906643639,-1750.456,0.00022618,2]
[365775967,1749906643648,-500.0,0.00022618,2]
[365775968,1749906643657,-500.0,0.00022618,2]
[365775969,1749906643667,-5000.0,0.00022618,2]
[365775970,1749906643676,-500.0,0.00022618,2]
[365775971,1749906643685,-500.0,0.00022618,2]
[365775972,1749906643696,-500.0,0.00022618,2]
[365775973,1749906643705,-500.0,0.00022618,2]
[365775974,1749906643715,-500.0,0.00022618,2]
[365775975,1749906643725,-500.0,0.00022618,2]
[365775976,1749906643734,-500.0,0.00022618,2]
[365775977,1749906643743,-500.0,0.00022618,2]
[365775978,1749906643753,-500.0,0.00022618,2]
[365775979,1749906643763,-500.0,0.00022618,2]
[365775980,1749906643772,-500.0,0.00022618,2]
[365775981,1749906643781,-500.0,0.00022618,2]
[365775983,1749906643791,-500.0,0.00022618,2]
[365775985,1749906643801,-1580.99945931,0.00022624,7]
[365775987,1749906643810,-1580.99945931,0.00022728,7]
[365775988,1749906643819,-151.0,0.00022739,7]
[365775989,1749906643830,-290.573005,0.00022739,7]
[365775990,1749906643839,-193.477173,0.00022739,7]
[365775991,1749906643848,-193.477173,0.00022739,7]
[365775992,1749906643857,-193.477173,0.00022739,7]
[365775993,1749906643866,-193.477173,0.00022739,7]
[365775994,1749906643875,-460.0,0.00022739,4]
[365775995,1749906643885,-844.95,0.00022739,4]
[365775996,1749906643894,-460.0,0.00022739,4]
[365775997,1749906643903,-225.54,0.00022739,4]
[365775998,1749906643912,-460.0,0.00022739,4]
[365775999,1749906643921,-170.0,0.00022739,4]
[365776000,1749906643931,-231.462736,0.00022739,7]
[365776001,1749906643941,-231.462736,0.00022739,7]
[365776002,1749906643949,-460.0,0.00022739,4]
[365776003,1749906643959,-460.0,0.00022739,4]
[365776004,1749906643969,-460.0,0.00022739,4]
[365776005,1749906643978,-460.0,0.00022739,4]
[365776006,1749906643988,-460.0,0.00022739,4]
[365776007,1749906643998,-460.0,0.00022739,4]
[365776008,1749906644007,-460.0,0.00022739,4]
[365776009,1749906644017,-1794.95,0.00022739,4]
[365776010,1749906644026,-460.0,0.00022739,4]
[365776011,1749906644035,-460.0,0.00022739,4]
[365776012,1749906644045,-460.0,0.00022739,4]
[365776013,1749906644055,-460.0,0.00022739,4]
[365776014,1749906644064,-460.0,0.00022739,4]
[365776015,1749906644074,-460.0,0.00022739,4]
[365776016,1749906644085,-460.0,0.00022739,4]
[365776017,1749906644095,-460.0,0.00022739,4]
[365776018,1749906644105,-460.0,0.00022739,4]
[365776019,1749906644115,-785.69,0.00022739,4]
[365776020,1749906644126,-242.36035663,0.00022739,4]
[365776021,1749906644136,-1752.21,0.00022739,4]
[365776022,1749906644145,-460.0,0.00022739,2]
[365776023,1749906644155,-460.0,0.00022739,4]
[365776024,1749906644165,-1681.61,0.00022739,4]
[365776025,1749906644174,-460.0,0.00022739,4]
[365776026,1749906644184,-460.0,0.00022739,4]
[365776027,1749906644193,-4179.07,0.00022739,4]
[365776028,1749906644203,-460.0,0.00022739,4]
[365776029,1749906644215,-1735.71,0.00022739,4]
[365776030,1749906644225,-460.0,0.00022739,4]
[365776031,1749906644235,-460.0,0.00022739,4]
[365776032,1749906644245,-663.38,0.00022739,4]
[365776033,1749906644255,-1524.42,0.00022739,4]
[365776034,1749906644265,-460.0,0.00022739,4]
[365776035,1749906644276,-460.0,0.00022739,4]